fUSD/lending_fUSD_20240714
["ID","MTS","AMOUNT","RATE_DAILY","PERIOD"]
[332016356,1720933907219,-500.0,0.00013917,2]
[332016357,1720933907231,-151.0,0.00013917,2]
[332016358,1720933907242,-560.96,0.00013917,2]
[332016359,1720933907254,-500.0,0.00013917,2]
[332016360,1720933907262,-516.93086412,0.00013917,2]
[332016361,1720933907273,-500.0,0.00013917,2]
[332016362,1720933907283,-10000.0,0.00013917,2]
[332016363,1720933907293,-151.0,0.00013917,2]
[332016364,1720933907302,-500.0,0.00013917,2]
[332016365,1720933907312,-10000.0,0.00013917,2]
[332016366,1720933907322,-500.0,0.00013917,2]
[332016367,1720933907333,-500.0,0.00013917,2]
[332016368,1720933907343,-503.25965163,0.00013917,2]
[332016369,1720933907354,-500.0,0.00013917,2]
[332016370,1720933907364,-500.0,0.00013917,2]
[332016371,1720933907374,-500.0,0.00013917,2]
[332016372,1720933907384,-500.0,0.00013917,2]
[332016373,1720933907398,-500.0,0.00013917,2]
[332016374,1720933907409,-500.0,0.00013917,2]
[332016375,1720933907418,-1137.19,0.00013917,2]
[332016376,1720933907427,-751.05,0.00013917,2]
[332016377,1720933907437,-767.6,0.00013917,2]
[332016378,1720933907447,-500.0,0.00013917,2]
[332016379,1720933907456,-500.0,0.00013917,2]
[332016380,1720933907466,-151.0,0.00013917,2]
[332016381,1720933907476,-500.0,0.00013917,2]
[332016382,1720933907485,-500.0,0.00013917,2]
[332016383,1720933907494,-500.0,0.00013917,2]
[332016384,1720933907504,-1434.38,0.00013917,2]
[332016385,1720933907513,-500.0,0.00013917,2]
[332016386,1720933907523,-504.54218818,0.00013917,2]
[332016387,1720933907532,-500.0,0.00013917,2]
[332016388,1720933907541,-500.0,0.00013917,2]
[332016389,1720933907550,-500.0,0.00013917,2]
[332016390,1720933907560,-500.0,0.00013917,2]
[332016391,1720933907570,-500.0,0.00013917,2]
[332016392,1720933907579,-500.0,0.00013917,2]
[332016393,1720933907588,-510.88,0.00013917,2]
[332016394,1720933907598,-500.0,0.00013917,2]
[332016395,1720933907608,-930.87,0.00013917,2]
[332016396,1720933907617,-638.82,0.00013917,2]
[332016397,1720933907627,-500.0,0.00013917,2]
[332016398,1720933907636,-500.0,0.00013917,2]
[332016399,1720933907646,-500.0,0.00013917,2]
[332016400,1720933907655,-500.0,0.00013917,2]
[332016401,1720933907665,-500.0,0.00013917,2]
[332016402,1720933907675,-593.63,0.00013917,2]
[332016403,1720933907684,-500.0,0.00013917,2]
[332016404,1720933907693,-500.0,0.00013917,2]
[332016405,1720933907703,-500.0,0.00013917,2]
[332016406,1720933907712,-500.0,0.00013917,2]
[332016407,1720933907722,-500.0,0.00013917,2]
[332016408,1720933907731,-762.3,0.00013917,2]
[332016409,1720933907740,-500.0,0.00013917,2]
[332016410,1720933907750,-726.27,0.00013917,2]
[332016411,1720933907759,-1121.8,0.00013917,2]
[332016412,1720933907768,-500.0,0.00013917,2]
[332016413,1720933907778,-500.0,0.00013917,2]
[332016414,1720933907787,-500.0,0.00013917,2]
[332016415,1720933907797,-500.0,0.00013917,2]
[332016416,1720933907806,-500.0,0.00013917,2]
[332016417,1720933907815,-500.0,0.00013917,2]
[332016418,1720933907825,-500.0,0.00013917,2]
[332016419,1720933907834,-1694.77,0.00013917,2]
[332016420,1720933907844,-303.53634322,0.00013917,2]
[332016421,1720933907853,-1390.47,0.00013917,2]
[332016422,1720933907862,-500.0,0.00013917,2]
[332016423,1720933907873,-500.0,0.00013917,2]
[332016424,1720933907883,-500.0,0.00013917,2]
[332016425,1720933907892,-632.59,0.00013917,2]
[332016426,1720933907902,-500.0,0.00013917,2]
[332016427,1720933907913,-500.0,0.00013917,2]
[332016428,1720933907922,-500.0,0.00013917,2]
[332016429,1720933907932,-500.0,0.00013917,2]
[332016430,1720933907942,-500.0,0.00013917,2]
[332016431,1720933907951,-500.0,0.00013917,2]
[332016432,1720933907960,-500.0,0.00013917,2]
[332016433,1720933907970,-500.0,0.00013917,2]
[332016434,1720933907980,-500.0,0.00013917,2]
[332016435,1720933907989,-306.59,0.00013917,2]
[332016436,1720933907998,-500.0,0.00013917,2]
[332016437,1720933908007,-500.0,0.00013917,2]
[332016438,1720933908017,-543.04,0.00013917,2]
[332016439,1720933908027,-500.0,0.00013917,2]
[332016440,1720933908037,-500.0,0.00013917,2]
[332016441,1720933908046,-500.0,0.00013917,2]
[332016442,1720933908056,-500.0,0.00013917,2]
[332016443,1720933908066,-500.0,0.00013917,2]
[332016444,1720933908075,-500.0,0.00013917,2]
[332016445,1720933908085,-500.0,0.00013917,2]
[332016446,1720933908094,-500.0,0.00013917,2]
[332016447,1720933908104,-500.0,0.00013917,2]
[332016448,1720933908113,-500.0,0.00013917,2]
[332016449,1720933908124,-704.4,0.00013917,2]
[332016450,1720933908133,-500.0,0.00013917,2]
[332016451,1720933908143,-623.65,0.00013917,2]
[332016452,1720933908153,-504.62608663,0.00013917,2]
[332016453,1720933908166,-500.0,0.00013917,2]
[332016454,1720933908178,-500.0,0.00013917,2]
[332016455,1720933908188,-500.0,0.00013917,2]
[332016456,1720933908199,-500.0,0.00013917,2]
[332016457,1720933908208,-500.0,0.00013917,2]
[332016458,1720933908218,-383.55188245,0.00013917,2]
[332016459,1720933908228,-612.45,0.00013917,2]
[332016460,1720933908238,-670.77,0.00013917,2]
[332016461,1720933908247,-500.0,0.00013917,2]
[332016462,1720933908257,-500.0,0.00013917,2]
[332016463,1720933908269,-2455.39,0.00013917,2]
[332016464,1720933908279,-500.0,0.00013917,2]
[332016465,1720933908288,-500.0,0.00013917,2]
[332016466,1720933908298,-500.0,0.00013917,2]
[332016467,1720933908307,-500.0,0.00013917,2]
[332016468,1720933908317,-784.9,0.00013917,2]
[332016469,1720933908327,-500.0,0.00013917,2]
[332016470,1720933908336,-505.10356054,0.00013917,2]
[332016471,1720933908346,-500.0,0.00013917,2]
[332016472,1720933908355,-500.0,0.00013917,2]
[332016473,1720933908364,-500.0,0.00013917,2]
[332016474,1720933908373,-500.0,0.00013917,2]
[332016475,1720933908383,-500.0,0.00013917,2]
[332016476,1720933908395,-500.0,0.00013917,2]
[332016477,1720933908404,-500.0,0.00013917,2]
[332016478,1720933908416,-500.0,0.00013917,2]
[332016479,1720933908426,-500.0,0.00013917,2]
[332016480,1720933908437,-500.0,0.00013917,2]
[332016481,1720933908447,-500.0,0.00013917,2]
[332016482,1720933908457,-500.0,0.00013917,2]
[332016483,1720933908468,-802.06,0.00013917,2]
[332016484,1720933908478,-1831.6,0.00013917,2]
[332016485,1720933908488,-500.0,0.00013917,2]
[332016486,1720933908497,-500.0,0.00013917,2]
[332016487,1720933908507,-701.41,0.00013917,2]
[332016488,1720933908516,-500.0,0.00013917,2]
[332016489,1720933908525,-4854.49,0.00013917,2]
[332016490,1720933908535,-500.0,0.00013917,2]
[332016491,1720933908544,-500.0,0.00013917,2]
[332016492,1720933908554,-500.0,0.00013917,2]
[332016493,1720933908564,-500.0,0.00013917,2]
[332016494,1720933908573,-500.0,0.00013917,2]
[332016495,1720933908583,-500.0,0.00013917,2]
[332016496,1720933908592,-500.0,0.00013917,2]
[332016497,1720933908602,-500.0,0.00013917,2]
[332016498,1720933908611,-500.0,0.00013917,2]
[332016499,1720933908622,-500.0,0.00013917,2]
[332016500,1720933908631,-500.0,0.00013917,2]
[332016501,1720933908641,-500.0,0.00013917,2]
[332016502,1720933908650,-500.0,0.00013917,2]
[332016503,1720933908661,-500.0,0.00013917,2]
[332016504,1720933908670,-500.0,0.00013917,2]
[332016505,1720933908680,-836.77,0.00013917,2]
[332016506,1720933908689,-500.0,0.00013917,2]
[332016507,1720933908699,-500.0,0.00013917,2]
[332016508,1720933908708,-799.18,0.00013917,2]
[332016509,1720933908718,-150.0,0.00013928,2]
[332016510,1720933908728,-1763.263469,0.0001393,2]
[332016511,1720933908737,-3000.0,0.0001395,2]
[332016512,1720933908747,-150.0,0.00013954,2]
[332016513,1720933908757,-150.0,0.00013956,2]
[332016514,1720933908767,-150.0,0.0001396,2]
[332016515,1720933908776,-1166.37435434,0.00013965,2]
[332016516,1720933908785,-583.18717717,0.00013967,2]
[332016517,1720933908795,-853940.33496397,0.00013968,2]
[332016518,1720933908804,-203.85,0.00013968,2]
[332016519,1720933908814,-203.85,0.00013968,2]
[332016520,1720933908824,-151.0,0.00013968,2]
[332016521,1720933908833,-151.0,0.00013968,2]
[332016522,1720933908843,-151.0,0.00013968,2]
[332016523,1720933908851,-151.0,0.00013968,2]
[332016524,1720933908861,-151.0,0.00013968,2]
[332016525,1720933908871,-151.0,0.00013968,2]
[332016526,1720933908881,-151.0,0.00013968,2]
[332016527,1720933908891,-151.0,0.00013968,2]
[332016528,1720933908900,-151.0,0.00013968,2]
[332016529,1720933908912,-151.0,0.00013968,2]
[332016530,1720933908921,-151.0,0.00013968,2]
[332016531,1720933908931,-151.0,0.00013968,2]
[332016532,1720933908940,-1018.332775,0.00013968,2]
[332016533,1720933908950,-1018.332775,0.00013968,2]
[332016534,1720933908960,-152.207265,0.00013968,2]
[332016535,1720933908969,-151.0,0.00013968,2]
[332016536,1720933908978,-171.860025,0.00013968,2]
[332016537,1720933908988,-151.0,0.00013968,2]
[332016538,1720933908998,-151.0,0.00013968,2]
[332016539,1720933909007,-151.0,0.00013968,2]
[332016540,1720933909086,-151.0,0.00013968,2]
[332016541,1720933909096,-365.8733,0.00013968,2]
[332016542,1720933909105,-151.0,0.00013968,2]
[332016543,1720933909115,-320.684019,0.00013968,2]
[332016544,1720933909124,-320.684019,0.00013968,2]
[332016545,1720933909133,-151.0,0.00013968,2]
[332016546,1720933909142,-151.0,0.00013968,2]
[332016547,1720933909151,-151.0,0.00013968,2]
[332016548,1720933909161,-151.0,0.00013968,2]
[332016549,1720933909171,-151.0,0.00013968,2]
[332016550,1720933909180,-151.0,0.00013968,2]
[332016551,1720933909190,-273.81907,0.00013968,2]
[332016552,1720933909199,-545.361445,0.00013968,2]
[332016553,1720933909209,-545.361445,0.00013968,2]
[332016554,1720933909219,-275.069871,0.00013968,2]
[332016555,1720933909229,-275.069871,0.00013968,2]
[332016556,1720933909239,-151.0,0.00013968,2]
[332016557,1720933909248,-151.0,0.00013968,2]
[332016558,1720933909258,-151.0,0.00013968,2]
[332016559,1720933909268,-151.0,0.00013968,2]
[332016560,1720933909277,-681.849687,0.00013968,2]
[332016561,1720933909287,-681.849687,0.00013968,2]
[332016562,1720933909299,-10000.0,0.00013968,2]
[332016563,1720933909309,-10000.0,0.00013968,2]
[332016564,1720933909318,-151.0,0.00013968,2]
[332016565,1720933909327,-10000.0,0.00013968,2]
[332016566,1720933909337,-151.0,0.00013968,2]
[332016567,1720933909347,-10000.0,0.00013968,2]
[332016568,1720933909356,-151.0,0.00013968,2]
[332016569,1720933909366,-151.0,0.00013968,2]
[332016570,1720933909376,-151.0,0.00013968,2]
[332016571,1720933909387,-151.0,0.00013968,2]
[332016572,1720933909398,-151.0,0.00013968,2]
[332016573,1720933909409,-410.318852,0.00013968,2]
[332016574,1720933909418,-410.318852,0.00013968,2]
[332016575,1720933909428,-150.0,0.00013969,2]
[332016576,1720933909438,-172868.24068178,0.0001397,2]
[332016577,1720933909448,-3000.0,0.0001397,2]
[332016578,1720933909457,-533.07071667,0.00013972,2]
[332016579,1720933909468,-500.0,0.00013972,2]
[332016580,1720933909477,-500.0,0.00013972,2]
[332016581,1720933909486,-500.0,0.00013972,2]
[332016582,1720933909495,-500.0,0.00013972,2]
[332016583,1720933909504,-510.65310316,0.00013972,2]
[332016584,1720933909514,-219.00577905,0.00013972,2]
[332016585,1720933909523,-500.0,0.00013972,2]
[332016586,1720933909532,-500.0,0.00013972,2]
[332016587,1720933909541,-500.0,0.00013972,2]
[332016588,1720933909550,-329.51785017,0.00013972,2]
[332016589,1720933909560,-500.0,0.00013972,2]
[332016590,1720933909572,-816.4,0.00013972,2]
[332016591,1720933909581,-500.0,0.00013972,2]
[332016592,1720933909590,-500.0,0.00013972,2]
[332016593,1720933909599,-507.39331194,0.00013972,2]
[332016594,1720933909609,-500.0,0.00013972,2]
[332016595,1720933909618,-500.0,0.00013972,2]
[332016596,1720933909628,-500.0,0.00013972,2]
[332016597,1720933909637,-500.0,0.00013972,2]
[332016598,1720933909646,-500.0,0.00013972,2]
[332016599,1720933909655,-500.0,0.00013972,2]
[332016600,1720933909666,-500.0,0.00013972,2]
[332016601,1720933909675,-697.56,0.00013972,2]
[332016602,1720933909684,-500.0,0.00013972,2]
[332016603,1720933909694,-500.0,0.00013972,2]
[332016604,1720933909704,-500.0,0.00013972,2]
[332016605,1720933909713,-500.0,0.00013972,2]
[332016606,1720933909722,-500.0,0.00013972,2]
[332016607,1720933909731,-500.0,0.00013972,2]
[332016608,1720933909740,-500.0,0.00013972,2]
[332016609,1720933909749,-500.0,0.00013972,2]
[332016610,1720933909758,-500.0,0.00013972,2]
[332016611,1720933909767,-500.0,0.00013972,2]
[332016612,1720933909776,-500.0,0.00013972,2]
[332016613,1720933909785,-1034.27,0.00013972,2]
[332016614,1720933909794,-500.0,0.00013972,2]
[332016615,1720933909803,-500.0,0.00013972,2]
[332016616,1720933909812,-500.0,0.00013972,2]
[332016617,1720933909821,-508.1,0.00013972,2]
[332016618,1720933909831,-500.0,0.00013972,2]
[332016619,1720933909840,-762.05,0.00013972,2]
[332016620,1720933909850,-500.0,0.00013972,2]
[332016621,1720933909859,-224.18155697,0.00013972,2]
[332016622,1720933909869,-475.02774542,0.00013972,2]
[332016623,1720933910624,-24.97225458,0.00013972,2]
[332016624,1720933910636,-175.65403069,0.00013972,2]
[332016625,1720933910648,-500.0,0.00013972,2]
[332016626,1720933910658,-482.30791716,0.00013972,2]
[332016627,1720933910672,-17.69208284,0.00013972,2]
[332016628,1720933910682,-500.0,0.00013972,2]
[332016629,1720933910691,-500.0,0.00013972,2]
[332016630,1720933910701,-500.0,0.00013972,2]
[332016631,1720933910711,-500.0,0.00013972,2]
[332016632,1720933910721,-500.0,0.00013972,2]
[332016633,1720933910731,-469.70396033,0.00013972,2]
[332016634,1720933910742,-291.55180581,0.00013972,2]
[332016635,1720933910752,-500.0,0.00013972,2]
[332016636,1720933910762,-500.0,0.00013972,2]
[332016637,1720933910771,-235.01550911,0.00013972,2]
[332016638,1720933910781,-500.0,0.00013972,2]
[332016639,1720933910791,-500.0,0.00013972,2]
[332016640,1720933910800,-60.4661591,0.00013972,2]
[332016641,1720933911787,-500.35,0.00013698,2]
[332016642,1720933911797,-318.21062713,0.00013698,2]
[332016643,1720933912395,-181.78937287,0.00013698,2]
[332016644,1720933912405,-624.84,0.00013698,2]
[332016645,1720933912416,-73.59276196,0.00013698,2]
[332016646,1720933912993,-426.40723804,0.00013698,2]
[332016647,1720933913008,-500.0,0.00013698,2]
[332016648,1720933913022,-500.0,0.00013698,2]
[332016649,1720933913037,-500.0,0.00013698,2]
[332016650,1720933913052,-500.0,0.00013698,2]
[332016651,1720933913066,-500.0,0.00013698,2]
[332016652,1720933913080,-500.0,0.00013698,2]
[332016653,1720933913095,-534.42,0.00013698,2]
[332016654,1720933913108,-500.0,0.00013698,2]
[332016655,1720933913122,-500.0,0.00013753,2]
[332016656,1720933913136,-500.0,0.00013753,2]
[332016657,1720933913151,-500.0,0.00013753,2]
[332016658,1720933913166,-113.70053264,0.00013753,2]
[332016659,1720933913187,-386.29946736,0.00013753,2]
[332016660,1720933913202,-312.07,0.00013753,2]
[332016661,1720933913217,-500.0,0.00013753,2]
[332016662,1720933913232,-500.0,0.00013753,2]
[332016663,1720933913247,-500.0,0.00013753,2]
[332016664,1720933913261,-1303.97599568,0.000138,2]
[332016665,1720933913446,-500.0,0.00013698,2]
[332016666,1720933913463,-500.0,0.00013698,2]
[332016667,1720933913478,-220.94928002,0.00013698,2]
[332016668,1720933913492,-500.0,0.00013753,2]
[332016669,1720933913508,-628.75543562,0.000138,2]
[332016675,1720934088073,630.06,0.00010959,2]
[332016676,1720934190644,179.17,0.00010959,2]
[332016679,1720934241239,155.28448734,0.00010959,2]
[332016680,1720934245599,412.7481654,0.00010959,2]
[332016682,1720934303494,295.48,0.00010959,2]
[332016689,1720934378394,8327.25734726,0.00010959,2]
[332016690,1720934378418,10000.0,0.00010959,2]
[332016691,1720934378439,10000.0,0.00010959,2]
[332016692,1720934378461,10000.0,0.00010959,2]
[332016693,1720934378485,10000.0,0.00010959,2]
[332016694,1720934378506,10000.0,0.00010959,2]
[332016695,1720934378530,10000.0,0.00010959,2]
[332016696,1720934378551,10000.0,0.00010959,2]
[332016697,1720934378574,10000.0,0.00010959,2]
[332016698,1720934378594,10000.0,0.00010959,2]
[332016735,1720934897616,164.99974057,0.00025,60]
[332016766,1720935032016,-3264.51941235,0.00010041,2]
[332016767,1720935032149,-877.91140247,0.00010041,2]
[332016768,1720935032162,-1017.45968518,0.00010041,2]
[332016769,1720935032174,-374.39,0.00010141,2]
[332016770,1720935032185,-202.29,0.00010959,2]
[332016771,1720935032196,-168.58,0.00010959,2]
[332016772,1720935032206,-842.91,0.00010959,2]
[332016773,1720935032216,-500.0,0.00011012,2]
[332016774,1720935032226,-62.72031482,0.00011012,2]
[332016775,1720935032278,-437.27968518,0.00011012,2]
[332016776,1720935032287,-249.1401791,0.00011012,2]
[332016777,1720935032298,-8282.53052392,0.00011012,2]
[332016797,1720935038524,-298.41728368,0.00011012,2]
[332016798,1720935038585,-9861.75544447,0.00011012,2]
[332016799,1720935038594,-300.0,0.00011097,2]
[332016800,1720935038603,-156.04152706,0.00011098,2]
[332016801,1720935038612,-722.81429297,0.00011098,2]
[332016802,1720935038622,-1269.95880681,0.00011098,2]
[332016803,1720935038631,-253.47726251,0.00011098,2]
[332016804,1720935038640,-196.62196732,0.00011098,2]
[332016805,1720935038650,-3966.62213262,0.00011098,2]
[332016806,1720935038661,-1033.37786738,0.00011098,2]
[332016807,1720935038670,-155.0,0.00011098,2]
[332016808,1720935038680,-333.35770028,0.00011098,2]
[332016809,1720935038689,-3165.56958838,0.00011098,2]
[332016811,1720935038699,-2142.4852451,0.00011098,2]
[332016813,1720935038708,-155.85762833,0.00011098,2]
[332016815,1720935038721,-179.95583316,0.00011197,2]
[332016817,1720935038731,-695.6112934,0.00011197,2]
[332016818,1720935038740,-175.5020509,0.00011197,2]
[332016820,1720935038749,-255.42058009,0.00011199,2]
[332016822,1720935038759,-63.32396398,0.00011199,2]
[332016824,1720935038771,-1259.45353379,0.00011199,2]
[332016826,1720935038780,-400.0,0.00011199,2]
[332016828,1720935038792,-2567.72363538,0.00011199,2]
[332016830,1720935038801,-269.73227948,0.00011199,2]
[332016832,1720935038809,-1267.08839512,0.00011199,2]
[332016834,1720935038819,-250.0,0.00011927,2]
[332016836,1720935038828,-23890.0,0.00011967,2]
[332016838,1720935038837,-1000.0,0.00011974,2]
[332016839,1720935038846,-2524.31,0.000121,2]
[332016842,1720935038856,-420.0,0.00012193,2]
[332016844,1720935038866,-407.49180447,0.00012273,2]
[332016846,1720935038875,-206.91753885,0.00012273,2]
[332016848,1720935038885,-155.0,0.00012302,2]
[332016850,1720935038895,-503.88,0.0001231,2]
[332016852,1720935038904,-499.99,0.0001231,2]
[332016853,1720935038913,-3.76492929,0.00012314,2]
[332016856,1720935038923,-261.14922223,0.00012314,2]
[332016857,1720935038931,-374.39,0.00012405,2]
[332016859,1720935038940,-609.787,0.00012457,2]
[332016861,1720935038950,-250.0,0.00012466,2]
[332016863,1720935038960,-3732.85017,0.000126,2]
[332016865,1720935038969,-165.33,0.0001265,2]
[332016867,1720935038979,-231.39738846,0.00012656,2]
[332016869,1720935038988,-600.0,0.00012656,2]
[332016872,1720935038999,-1006.14657257,0.00012814,2]
[332016874,1720935039009,-167.15,0.0001284,2]
[332016876,1720935039019,-1250.0,0.00013,2]
[332016878,1720935039029,-1309.66951492,0.00013128,2]
[332016880,1720935039038,-220.2386914,0.00013128,2]
[332016882,1720935039050,-7110.87941799,0.00013283,2]
[332016884,1720935039063,-21033.03104914,0.00013283,2]
[332016887,1720935039102,-9604.72699736,0.00013283,2]
[332016933,1720935039594,-12228.94732566,0.00013283,2]
[332016935,1720935039606,-561.20098622,0.00013283,2]
[332016938,1720935039623,-1806.45418581,0.00013283,2]
[332016940,1720935039641,-10312.64728852,0.00013283,2]
[332016943,1720935039658,-9992.04484842,0.00013283,2]
[332016945,1720935039669,-6904.82972179,0.00013283,2]
[332016999,1720935040163,-592.17704,0.00013283,2]
[332017002,1720935040176,-3527.75465539,0.00013283,2]
[332017007,1720935040220,-1748.56626615,0.00013283,2]
[332017010,1720935040232,-1120.0285415,0.00013283,2]
[332017013,1720935040258,-2308.7190597,0.00012273,2]
[332017015,1720935040267,-9552.09076174,0.00013283,2]
[332017181,1720935042200,-302.9056461,0.00013283,2]
[332017183,1720935042210,-2629.75280034,0.000133,2]
[332017185,1720935042221,-1120.89500001,0.000133,2]
[332017346,1720935043691,-284.70005583,0.000133,2]
[332017348,1720935043703,-965.72149382,0.000133,2]
[332017350,1720935043712,-40.90480697,0.0001337,2]
[332017352,1720935043727,-109.09519303,0.0001337,2]
[332017354,1720935043736,-243.63280339,0.0001337,2]
[332017367,1720935043852,-216.68719661,0.0001337,2]
[332017369,1720935043862,-587.0,0.00013398,2]
[332017371,1720935043872,-1000.0,0.00013471,2]
[332017373,1720935043882,-311.81936553,0.00013598,2]
[332017375,1720935043892,-1000.0,0.00013598,2]
[332017377,1720935043902,-7500.0,0.00013598,2]
[332017379,1720935043911,-194.39572574,0.00013695,2]
[332017381,1720935043921,-500.0,0.00013698,2]
[332017383,1720935043931,-500.0,0.00013698,2]
[332017385,1720935043941,-500.0,0.00013698,2]
[332017387,1720935043951,-500.0,0.00013698,2]
[332017389,1720935043960,-500.0,0.00013698,2]
[332017392,1720935043970,-500.0,0.00013698,2]
[332017394,1720935043979,-500.0,0.00013698,2]
[332017396,1720935043988,-362.69187652,0.00013698,2]
[332017398,1720935043999,-500.0,0.00013698,2]
[332017400,1720935044008,-500.0,0.00013698,2]
[332017402,1720935044018,-500.0,0.00013698,2]
[332017404,1720935044028,-500.0,0.00013698,2]
[332017405,1720935044037,-500.0,0.00013698,2]
[332017407,1720935044047,-169.57226087,0.00013698,2]
[332017409,1720935044057,-500.0,0.00013698,2]
[332017411,1720935044067,-500.0,0.00013698,2]
[332017413,1720935044076,-339.18480676,0.00013698,2]
[332017415,1720935044087,-500.0,0.00013698,2]
[332017417,1720935044097,-217.60183928,0.00013698,2]
[332017419,1720935044106,-500.0,0.00013698,2]
[332017421,1720935044116,-200.0,0.00013698,2]
[332017423,1720935044126,-500.0,0.00013698,2]
[332017425,1720935044135,-500.0,0.00013698,2]
[332017427,1720935044145,-619.78,0.00013698,2]
[332017429,1720935044154,-869.42,0.00013698,2]
[332017431,1720935044164,-500.0,0.00013698,2]
[332017433,1720935044174,-500.0,0.00013698,2]
[332017435,1720935044183,-500.0,0.00013698,2]
[332017437,1720935044193,-500.0,0.00013698,2]
[332017439,1720935044203,-500.0,0.00013698,2]
[332017442,1720935044212,-500.0,0.00013698,2]
[332017443,1720935044222,-208.95233439,0.00013698,2]
[332017445,1720935044231,-500.0,0.00013698,2]
[332017448,1720935044241,-539.18,0.00013698,2]
[332017449,1720935044251,-500.0,0.00013698,2]
[332017451,1720935044260,-500.0,0.00013698,2]
[332017453,1720935044270,-500.0,0.00013698,2]
[332017455,1720935044280,-500.0,0.00013698,2]
[332017457,1720935044289,-500.0,0.00013698,2]
[332017459,1720935044300,-609.67,0.00013698,2]
[332017461,1720935044309,-511.98968617,0.00013698,2]
[332017464,1720935044319,-500.0,0.00013698,2]
[332017465,1720935044328,-500.0,0.00013698,2]
[332017468,1720935044340,-500.0,0.00013698,2]
[332017470,1720935044350,-500.0,0.00013698,2]
[332017472,1720935044359,-500.0,0.00013698,2]
[332017474,1720935044369,-500.0,0.00013698,2]
[332017475,1720935044378,-500.0,0.00013698,2]
[332017477,1720935044387,-500.0,0.00013698,2]
[332017479,1720935044396,-500.0,0.00013698,2]
[332017482,1720935044406,-500.0,0.00013698,2]
[332017484,1720935044416,-500.0,0.00013698,2]
[332017486,1720935044425,-500.0,0.00013698,2]
[332017487,1720935044435,-500.0,0.00013698,2]
[332017488,1720935044444,-221.6737319,0.00013698,2]
[332017489,1720935044454,-500.0,0.00013698,2]
[332017490,1720935044463,-500.0,0.00013698,2]
[332017491,1720935044473,-500.0,0.00013698,2]
[332017492,1720935044482,-500.0,0.00013698,2]
[332017493,1720935044493,-500.0,0.00013698,2]
[332017494,1720935044503,-500.0,0.00013698,2]
[332017496,1720935044513,-500.0,0.00013698,2]
[332017498,1720935044522,-500.0,0.00013698,2]
[332017500,1720935044532,-500.0,0.00013698,2]
[332017502,1720935044542,-500.0,0.00013698,2]
[332017504,1720935044551,-500.0,0.00013698,2]
[332017506,1720935044561,-500.0,0.00013698,2]
[332017508,1720935044570,-500.0,0.00013698,2]
[332017510,1720935044579,-500.0,0.00013698,2]
[332017512,1720935044591,-500.0,0.00013698,2]
[332017514,1720935044601,-500.0,0.00013698,2]
[332017516,1720935044611,-500.0,0.00013698,2]
[332017518,1720935044620,-500.0,0.00013698,2]
[332017520,1720935044630,-500.0,0.00013698,2]
[332017522,1720935044640,-500.0,0.00013698,2]
[332017524,1720935044650,-500.0,0.00013698,2]
[332017526,1720935044659,-500.0,0.00013698,2]
[332017528,1720935044668,-500.0,0.00013698,2]
[332017530,1720935044678,-500.0,0.00013698,2]